Cogmind - Beta 14 @@@ ROGUE MODE // 2025.03.29 @ 12:28:50 Player: canerib Result: Destroyed by G-34 Mercenary with Small Laser Performance ------------- Evolutions (0) 0 Regions Visited (1) 200 Robots Destroyed (15) 75 Value Destroyed (399) 399 Prototype IDs (2) 40 Alien Tech Used (0) 0 Bonus (0) 0 TOTAL SCORE: 714 Bonus ------- None Cogmind --------- Core Integrity 0/250 Matter 239/300 Energy 100/100 System Corruption 0% Temperature Cool (6) Movement Core (1350) Ox26 Location -10/Materials Parts ------- > --- POWER (1) -------- (None) > --- PROPULSION (2) --- (None) > --- UTILITY (2) ------ Huge Storage Unit Seismic Detector > --- WEAPON (2) ------- (None) > --- INVENTORY (25) --- Ion Engine Light Ion Engine Improved Heat Sink Small Storage Unit Huge Storage Unit Structural Scanner Visual Processing Unit Signal Interpreter Small Laser Small Laser Light Assault Rifle Peak State ------------ > --- POWER ------------ Light Nuclear Core > --- PROPULSION ------- Wheel > --- UTILITY ---------- Huge Storage Unit Seismic Detector > --- WEAPON ----------- Light Cannon Light Cannon > --- INVENTORY -------- Ion Engine Light Ion Engine Small Storage Unit Huge Storage Unit Structural Scanner Visual Processing Unit Small Laser Small Laser Light Assault Rifle [Rating: 9] Favorites ----------- Power Light Nuclear Core Engine Ion Engine Power Core Light Nuclear Core Propulsion Wheel Wheel Wheel Utility Seismic Detector Device Seismic Detector Storage Huge Storage Unit Weapon Light Cannon Energy Gun Medium Laser Ballistic Cannon Light Cannon Build | -11 -10 ------- Run | Yrd Mat Slots Evolved . | . . Power . | . . Propulsion . | . . Utility . | . . Weapon . | . . Parts Attached 12 | 7 5 Power 2 | 1 1 Engine 1 | 1 . Core 1 | . 1 Reactor . | . . Propulsion 2 | 2 . Treads . | . . Leg . | . . Wheel 2 | 2 . Hover . | . . Flight . | . . Utility 3 | 2 1 Device 1 | 1 . Storage 2 | 1 1 Processor . | . . Hackware . | . . Protection . | . . Artifact . | . . Weapon 5 | 2 3 Energy Gun 3 | 2 1 Energy Cannon . | . . Ballistic Gun . | . . Ballistic Cannon 2 | . 2 Launcher . | . . Special Weapon . | . . Impact Weapon . | . . Slashing Weapon . | . . Piercing Weapon . | . . Special Melee Weapon . | . . Unidentified Prototypes . | . . Parts Lost 7 | . 7 Power 1 | . 1 Propulsion 2 | . 2 Utility . | . . Weapon 4 | . 4 Highest Loss Streak 2 | . 2 To Critical Strikes . | . . Average Slot Usage (%) 84 | . 84 Engine 4 | . 4 Core 9 | . 9 Wheel 17 | . 17 Device 14 | . 14 Storage 14 | . 14 Energy Gun 7 | . 7 Ballistic Cannon 17 | . 17 Peak Build Rating 9 | 7 9 Average Rating 7 | 5 7 On Entrance 3 | . 7 Naked Turns . | . . Heaviest Build 92 | 15 92 Greatest Support 26 | 26 26 Greatest Overweight (x) 29 | 1 29 Average Overweight (x) 6 | . 6 Largest Inventory Capacity 25 | 8 25 Average Capacity 23 | 6 24 Most Carried 11 | 1 11 Average Carried 7 | . 7 Final Capacity 25 | 8 25 Final Carried 11 | 1 11 Class Distribution -------------------- 100% | Mutant Dominant Class ---------------- Mutant | -10/Materials Resources | -11 -10 ----------- Run | Yrd Mat Matter Collected 369 | 230 139 Remotely . | . . Salvage Created 452 | 29 423 Parts 17 | 3 14 Haulers Intercepted 1 | . 1 Recyclers Shooed . | . . Parts Field Recycled . | . . Retrieved Matter . | . . Parts Self-Destructed . | . . Prevented . | . . Kills | -11 -10 ------- Run | Yrd Mat Combat Hostiles Destroyed 9 | . 9 Guns 5 | . 5 Cannons 3 | . 3 AOE 1 | . 1 Classes Destroyed 6 | 1 5 Worker 1 | . 1 Builder 1 | . 1 Tunneler 1 | 1 . Hauler 1 | . 1 Watcher 2 | . 2 Grunt 9 | . 9 Best Kill Streak 5 | 1 5 Combat Bots Only 2 | . 2 Max Kills in Single Turn 3 | 1 3 Gunslinging . | . . Exploded 1 | . 1 Melee . | . . Uniques/NPCs Destroyed . | . . Combat | -11 -10 -------- Run | Yrd Mat Hostile Shots Fired 59 | . 59 Missed 10 | . 10 Damage Taken 802 | . 802 Core 250 | . 250 Absorbed by Shields . | . . Core Remaining (%) 100 | 100 . Volleys Fired 54 | 7 47 Largest 2 | 1 2 Hottest 90 | 50 90 Shots Fired 88 | 7 81 Gun 53 | 7 46 Cannon 35 | . 35 Launcher . | . . Special . | . . Kinetic 35 | . 35 Thermal 45 | 7 38 Explosive . | . . Electromagnetic 8 | . 8 Robot Hit Streak 11 | 4 11 Robot Miss Streak 3 | 2 3 Penetration Max . | . . Secondary Targets . | . . Shots Hit Robots 57 | 5 52 Core Hits 21 | 1 20 Critical Kills . | . . Critical Parts Destroyed . | . . Critical Strikes 4 | . 4 Burn 1 | . 1 Blast 3 | . 3 Melee Attacks . | . . Impact . | . . Slashing . | . . Piercing . | . . Sneak Attacks . | . . Combat Hostiles . | . . Follow-up Attacks . | . . Damage Inflicted 1206 | 64 1142 Guns 472 | 64 408 Cannons 356 | . 356 Explosions 378 | . 378 Melee . | . . Ramming . | . . Kinetic 356 | . 356 Thermal 758 | 64 694 Explosive . | . . Electromagnetic 92 | . 92 Impact . | . . Slashing . | . . Piercing . | . . Highest Corruption . | . . Average Corruption . | . . Corruption Purged . | . . Corruption Blocked . | . . Overload Shots . | . . Overflow Damage 34 | . 34 Projectiles 5 | . 5 Explosions 29 | . 29 Melee . | . . Knockbacks 5 | . 5 Impact . | . . Kinetic 5 | . 5 Secondary . | . . Self-Inflicted Damage 198 | . 198 Shots 2 | . 2 Rammed . | . . Targets Rammed . | . . Kicked . | . . Crushed . | . . Highest Temperature 406 | 40 406 Average Temperature 101 | 19 108 Received Heat Transfer 345 | . 345 Effects 1 | . 1 Shutdowns 1 | . 1 Siege Activations . | . . Robots Corrupted . | . . Combat Hostiles . | . . Parts Fried . | . . Impact Corruptions . | . . Robots Melted . | . . Combat Hostiles . | . . Parts Melted 3 | . 3 Heat Transferred 1411 | 185 1226 Parts Sabotaged . | . . Parts Stolen . | . . Parts Stripped . | . . Power Chain Reactions . | . . Alert | -11 -10 ------- Run | Yrd Mat Peak Influence 148 | 5 148 Initial 3 | . 3 Average 49 | 1 52 Maximum Alert Level . | . . Low Security (%) 100 | 100 100 Level 1 . | . . Level 2 . | . . Level 3 . | . . Level 4 . | . . Level 5 . | . . High Security . | . . Max Security . | . . Squads Dispatched 2 | . 2 Investigation . | . . Extermination . | . . Reinforcement 2 | . 2 Assault . | . . Garrison . | . . Intercept . | . . Searches Triggered . | . . Construction Impeded . | . . Haulers Reinforced . | . . Active Scanning Responses . | . . Cargo Convoy Interrupts . | . . Stealth | -11 -10 --------- Run | Yrd Mat Distress Signals 2 | . 2 Communications Jammed . | . . Distress Signals . | . . Times Spotted 19 | . 19 Peak Tracking Total 4 | . 4 Tactical Retreats . | . . Traps | -11 -10 ------- Run | Yrd Mat Traps Triggered . | . . Indirectly . | . . Trap Hack Attempts . | . . Triggered . | . . Disarmed . | . . Reprogrammed . | . . Reused . | . . Traps Extracted . | . . Installed . | . . Triggered . | . . Machines | -11 -10 ---------- Run | Yrd Mat Machines Disabled 2 | . 2 Max in Single Turn 2 | . 2 Machines Repaired . | . . Machines Dismantled . | . . Machines Sabotaged . | . . Overloaded Fab Kills . | . . Hacking | -11 -10 --------- Run | Yrd Mat Machines Accessed 3 | . 3 Terminals 3 | . 3 Fabricators . | . . Repair Stations . | . . Recycling Units . | . . Scanalyzers . | . . Garrison Access . | . . Total Hacks 11 | . 11 Successful 6 | . 6 Failed 5 | . 5 Catastrophic 2 | . 2 Database Lockouts . | . . Manual 1 | . 1 Terminals 11 | . 11 Fabricators . | . . Repair Stations . | . . Recycling Units . | . . Scanalyzers . | . . Garrison Access . | . . Terminal Hacks 6 | . 6 Robot Analysis 1 | . 1 Prototype ID Bank 1 | . 1 Branch Access Points 1 | . 1 Alert Level 1 | . 1 Registered Components 1 | . 1 Zone Layout 1 | . 1 Fabricator Hacks . | . . Repair Station Hacks . | . . Recycling Unit Hacks . | . . Scanalyzer . | . . Garrison Access Hacks . | . . Unauthorized Hacks . | . . Terminals . | . . Fabricators . | . . Repair Stations . | . . Recycling Units . | . . Scanalyzers . | . . Garrison Access . | . . Data Cores Recovered . | . . Used . | . . Hacking Detections 3 | . 3 Full Trace Events . | . . Feedback Events . | . . Feedback Blocked . | . . Robot Schematics Acquired . | . . Robots Built . | . . Authchips . | . . Time . | . . Total Robot Build Rating . | . . Part Schematics Acquired . | . . Parts Built . | . . Authchips . | . . Time . | . . Total Part Build Rating . | . . Parts Repaired . | . . Time . | . . Parts Recycled . | . . Recycled Matter . | . . Retrieved Matter . | . . Retrieved Components . | . . Parts Scanalyzed . | . . Part Schematics Acquired . | . . Parts Damaged . | . . Bothacking | -11 -10 ------------ Run | Yrd Mat Used RIF Installer . | . . Robots Hacked . | . . Non-combat . | . . Combat . | . . Robot Hacks Applied . | . . Relay Couplers Released . | . . Fabnet Peak Effective % . | . . Robots Rewired . | . . Allies Hacked . | . . Hacks Repelled . | . . Allies | -11 -10 -------- Run | Yrd Mat Total Allies . | . . Largest Group . | . . Highest-Rated Group . | . . Highest-Rated Ally . | . . Total Orders . | . . Ally Attacks . | . . Total Damage . | . . Kills . | . . Allies Corrupted . | . . Allies Melted . | . . Intel | -11 -10 ------- Run | Yrd Mat Robot Analysis Total 1 | . 1 Derelict Logs Recovered . | . . Drone Launches . | . . Drone Recoveries . | . . Exploration | -11 -10 ------------- Run | Yrd Mat Turns Passed 1165 | 67 1098 Spaces Moved 528 | 48 480 Core 7 | 2 5 Treads . | . . Legs . | . . Wheels 521 | 46 475 Hover . | . . Flight . | . . Fastest Speed 50 | 50 90 Average Speed 186 | 87 196 Slowest Speed 1500 | 100 1500 Overloaded Moves . | . . Propulsion Burnouts . | . . Robots Hopped . | . . Cave-ins Triggered . | . . Exploration Rate (%) 32 | 3 61 Regions Visited 1 Branch Regions . Pre-discovered Areas . | . . Known Exits Taken . | . . Unknown Exits Taken 1 | 1 . Scrap Searched . | . . Spaces Dug . | . . Terrain Destroyed 27 | . 27 Melee . | . . Projectile . | . . AOE 27 | . 27 Terrain Rammed . | . . Walls Destroyed . | . . Machines Disabled . | . . Actions | -11 -10 --------- Run | Yrd Mat Total 616 | 62 554 Wait 13 | . 13 Move 527 | 47 480 Hop . | . . Pick Up 9 | 1 8 Fast Attach 9 | 7 2 Attach 1 | . 1 Detach 1 | . 1 Swap 2 | . 2 Drop . | . . Fire 54 | 7 47 Melee . | . . Ram . | . . Kick . | . . Crush . | . . Escape Stasis . | . . Rewire . | . . Trap . | . . Miscellaneous . | . . Route ------- -11/Scrapyard -10/Materials (discovered 4 exits: [*Mat x2] / Min / [*Sub]) History --------- Turn | Location | Event 10 | -11/Scrapyard | Discovered new exit (range 16) 68 | -11/Scrapyard | Entered Materials 111 | -10/Materials | Identified exit to Mines 319 | -10/Materials | Build established: Mutant 353 | -10/Materials | Discovered new exit (range 4) 386 | -10/Materials | Core integrity fell below 50% 673 | -10/Materials | Discovered new exit (range 6) 1083 | -10/Materials | Discovered new exit (range 4) 1164 | -10/Materials | Core integrity fell below 20% 1166 | -10/Materials | Destroyed by G-34 Mercenary with Small Laser Last Messages --------------- 01136_ K-01 Serf collects debris. 01137_ U-05 Engineer builds a Wall. 01137_ U-05 Engineer lays Concrete. 01138_ U-05 Engineer builds a Wall. 01139_ U-05 Engineer lays Concrete. 01139_ K-01 Serf collects debris. 01140_ U-05 Engineer lays Concrete. 01142_ K-01 Serf collects debris. 01143_ U-05 Engineer lays Concrete. 01144_ K-01 Serf collects debris. 01146_ U-05 Engineer lays Concrete. 01153_ U-05 Engineer builds a Wall. 01154_ U-05 Engineer lays Concrete. 01155_ Lgt. Nuclear Core destroyed. 01155_ U-05 Engineer builds a Wall. 01157_ Lgt. Cannon destroyed. 01157_ U-05 Engineer builds a Wall. 01162_ K-01 Serf cleans the Electrolysis Chamber. 01163_ U-05 Engineer lays Concrete. Map ----- +----------------------------------------------------+ | # """ + # | | # """ # % # | | # """ ### ##### #### # | | # #?# """" #???# """ #??####### | | # #?# """" #???# """ * #????????? | | # ### """" #???# """ ** #????????? | | ######### #???# ** #????????? | | ????????# #???# #?######## | | ????????# #???# #?# | | ????????######## #???# #########+#### """ | | ????????????????######???# #??# # """ | | ??????????????????######## #??# "T" # """ | | ??????????????????# # #??# """ # | | ??????????????????# # %#??# # """ | | ??????????????????# """ + ############## """ | | ??????????????????# """ # # ! #???# """ | | ??????????????????# """ # # #???# | | ?????????####????## k # # #???######## | | ????????? ####;;;; ;## # ############ | | ???????? T k + # | | ??????????# % # # """ | | ??????????# % u # # """ "T" | | ??????????#% ! u # # """ """ | | ??????????# k ! ! # # | | ??????????# % !!! ##################### | | ??????????# o @ % ;#?# # # | | ??????????# % ######gg ##?# + / """ | | ??????????# %# # #???????????????????? | | ???????? ####<# #???????????????????? | | ???????? #???## #???????????????????? | | ????????? ?????# #???????????????????? | | ????????? ??????# k#???????????????????? | | ????????? ### ??????# ??????????????????? | | ?????????? ??#???????# ?????????????????? | | ?????????? ???????????# ????????????????? | | ??????????? ????????????#########???????????????? | | ?????????????????????????????????????????????????? | | ?????????????????????????????????????????????????? | | ?????????????????????????????????????????????????? | | ?????????????????????????????????????????????????? | | ?????????????????????????????????????????????????? | | ?????????????????????????????????????????????????? | | ?????????????????????????????????????????????????? | | ?????????????????????????????????????????????????? | | ?????????????????????????????????????????????????? | | ?????????????????????????????????????????????????? | | ?????????????????????????????????????????????????? | | | | | | | +----------------------------------------------------+ Best States ------------- Heat Dissipation 25 Energy Generation 14 Energy Capacity 250 Matter Stores 300 Matter Capacity 300 Sight Range 16 Terrain Scan Density 10 Evasion (%) 44 Item Schematics ----------------- None Robot Schematics ------------------ None Fabricated ------------ Nothing Alien Tech Used ----------------- None Achievements -------------- None Challenges ------------ None Game ------ Seed QuantumMeleeClaws Manual? 0 Play Time 00:09:38 Cumulative 90.2 hours Start 2025.03.29 @ 12:21:36 End 2025.03.29 @ 12:28:50 Sessions 1 Manual Loads 0 Difficulty Rogue Special Mode None Game No. 145 Rogue 145 Adventurer 0 Explorer 0 Win Type - Total 1 Types 1/0/0/0/0/0/0/0/0 Lore% 32 Gallery% 48 Achievement% 41 Wizard Run 0 Options --------- Layout 1 ASCII 1 Keyboard 0 Movement Numpad Keybinds 0 Fullscreen 1 Font 24/Smallcaps Map View 50x35 Zoom Use 0% Tactical HUD 1 Map Filters NONE Filters NONE Steam 1 RUN: c1a75f32-7ee1-42bf-8275-07a3a94fbb37